fUST/lending_fUST_20250722
["ID","MTS","AMOUNT","RATE_DAILY","PERIOD"]
[373960581,1753163443712,-460.0,0.00017375,2]
[373960582,1753163443721,-151.0,0.00017375,2]
[373960583,1753163443731,-151.0,0.00017375,2]
[373960584,1753163443741,-151.0,0.00017375,2]
[373960585,1753163443751,-329.1904351,0.00017376,2]
[373960587,1753163443761,-834.11,0.00017376,2]
[373960588,1753163443770,-460.0,0.00017376,2]
[373960589,1753163443884,-460.0,0.00017376,2]
[373960590,1753163443910,-460.0,0.00017376,2]
[373960591,1753163443920,-460.0,0.00017376,2]
[373960592,1753163443930,-460.0,0.00017376,2]
[373960593,1753163443941,-460.0,0.00017376,2]
[373960594,1753163443950,-151.0,0.00017376,2]
[373960595,1753163443960,-540.77,0.00017376,2]
[373960596,1753163443970,-460.0,0.00017377,2]
[373960597,1753163443979,-460.0,0.00017377,2]
[373960598,1753163443988,-470.45298476,0.00017377,2]
[373960599,1753163443999,-313.9639571,0.00017377,2]
[373960600,1753163444009,-460.0,0.00017377,2]
[373960601,1753163444018,-460.0,0.00017377,2]
[373960602,1753163444027,-460.0,0.00017377,2]
[373960603,1753163444037,-263.09915741,0.00017377,2]
[373960604,1753163444047,-460.0,0.00017377,2]
[373960605,1753163444057,-460.0,0.00017377,2]
[373960606,1753163444067,-472.44978497,0.00017377,2]
[373960607,1753163444076,-460.0,0.00017377,2]
[373960608,1753163444085,-460.0,0.00017377,2]
[373960609,1753163444095,-460.0,0.00017377,2]
[373960610,1753163444104,-460.0,0.00017377,2]
[373960611,1753163444113,-602.0158572,0.00017377,2]
[373960612,1753163444123,-460.0,0.00017377,2]
[373960613,1753163444132,-460.0,0.00017377,2]
[373960614,1753163444141,-460.0,0.00017377,2]
[373960615,1753163444151,-460.0,0.00017377,2]
[373960616,1753163444160,-460.0,0.00017377,2]
[373960617,1753163444169,-460.0,0.00017377,2]
[373960618,1753163444179,-460.0,0.00017377,2]
[373960619,1753163444189,-460.0,0.00017377,2]
[373960620,1753163444199,-460.0,0.00017377,2]
[373960621,1753163444208,-460.0,0.00017377,2]
[373960622,1753163444217,-460.0,0.00017377,2]
[373960623,1753163444226,-460.0,0.00017377,2]
[373960624,1753163444235,-460.0,0.00017377,2]
[373960625,1753163444244,-460.0,0.00017377,2]
[373960626,1753163444254,-460.0,0.00017377,2]
[373960627,1753163444263,-460.0,0.00017377,2]
[373960628,1753163444276,-460.0,0.00017377,2]
[373960629,1753163444286,-460.0,0.00017377,2]
[373960630,1753163444295,-460.0,0.00017377,2]
[373960631,1753163444305,-460.0,0.00017377,2]
[373960632,1753163444314,-460.0,0.00017377,2]
[373960633,1753163444324,-460.0,0.00017377,2]
[373960634,1753163444334,-284.71270815,0.00017377,2]
[373960635,1753163444344,-460.0,0.00017377,2]
[373960636,1753163444356,-460.0,0.00017377,2]
[373960637,1753163444365,-460.0,0.00017377,2]
[373960638,1753163444374,-460.0,0.00017377,2]
[373960639,1753163444384,-460.0,0.00017377,2]
[373960640,1753163444393,-151.0,0.00017377,2]
[373960641,1753163444402,-151.0,0.00017377,2]
[373960642,1753163444412,-242.50504,0.00017377,2]
[373960643,1753163444422,-460.0,0.00017377,2]
[373960644,1753163444431,-460.0,0.00017377,2]
[373960645,1753163444443,-407.04183614,0.00017377,2]
[373960646,1753163444452,-477.28929628,0.00017377,2]
[373960647,1753163444462,-460.0,0.00017377,2]
[373960648,1753163444471,-460.0,0.00017377,2]
[373960649,1753163444481,-460.0,0.00017377,2]
[373960650,1753163444490,-460.0,0.00017377,2]
[373960651,1753163444500,-958.9,0.00017378,2]
[373960652,1753163444509,-460.0,0.00017378,2]
[373960653,1753163444519,-460.0,0.00017378,2]
[373960654,1753163444529,-689.9,0.00017378,2]
[373960655,1753163444538,-706.84,0.00017378,2]
[373960656,1753163444547,-460.0,0.00017378,2]
[373960657,1753163444557,-460.0,0.00017378,2]
[373960658,1753163444566,-443.78718794,0.00017378,2]
[373960659,1753163444575,-1262.91,0.00017378,2]
[373960660,1753163444585,-701.74,0.00017378,2]
[373960661,1753163444595,-489.1,0.0001738,2]
[373960662,1753163444604,-460.0,0.0001738,2]
[373960663,1753163444614,-151.0,0.00017381,2]
[373960664,1753163444624,-151.0,0.00017381,2]
[373960665,1753163444633,-151.0,0.00017381,2]
[373960666,1753163444642,-151.0,0.00017381,2]
[373960667,1753163444652,-430.0,0.00017381,2]
[373960668,1753163444661,-151.0,0.00017381,2]
[373960669,1753163444671,-500.0,0.00017381,2]
[373960670,1753163444680,-223.1220868,0.00017381,2]
[373960671,1753163444690,-151.0,0.00017381,2]
[373960672,1753163444700,-982.37336439,0.00017421,2]
[373960673,1753163444709,-500.0,0.00017421,2]
[373960674,1753163444718,-1000.0,0.00017421,2]
[373960675,1753163444728,-1000.0,0.00017421,2]
[373960676,1753163444737,-548.56607355,0.00017421,2]
[373960677,1753163444747,-500.0,0.00017421,2]
[373960678,1753163444756,-500.0,0.00017421,2]
[373960679,1753163444766,-1000.0,0.00017421,2]
[373960680,1753163444776,-500.0,0.00017421,2]
[373960681,1753163444785,-431.03966901,0.00017421,2]
[373960682,1753163444795,-500.0,0.00017421,2]
[373960683,1753163444804,-500.93391383,0.00017421,2]
[373960684,1753163444813,-502.0146786,0.00017421,2]
[373960685,1753163444822,-1000.0,0.00017421,2]
[373960686,1753163444832,-547.08361476,0.00017421,2]
[373960687,1753163444841,-850.74554853,0.00017421,2]
[373960688,1753163444850,-1000.0,0.00017421,2]
[373960689,1753163444859,-500.0,0.00017421,2]
[373960690,1753163444869,-151.0,0.00017421,2]
[373960691,1753163444878,-151.0,0.00017421,2]
[373960692,1753163444887,-1569.63,0.00017484,2]
[373960693,1753163444895,-460.0,0.00017484,2]
[373960694,1753163444904,-661.66,0.00017484,2]
[373960695,1753163444913,-3889.01,0.00017484,2]
[373960696,1753163444922,-475.71354801,0.00017484,2]
[373960697,1753163444932,-1217.47,0.00017484,2]
[373960698,1753163444943,-244126.45285436,0.0001749,2]
[373960699,1753163444953,-460.0,0.00017594,2]
[373960700,1753163444962,-460.0,0.00017645,2]
[373960701,1753163444971,-460.0,0.00017645,2]
[373960702,1753163444980,-642.61,0.00017645,2]
[373960703,1753163444990,-333.81598796,0.00017646,2]
[373960704,1753163444999,-460.0,0.00017646,2]
[373960705,1753163445008,-460.0,0.00017646,2]
[373960706,1753163445017,-460.0,0.00017646,2]
[373960707,1753163445026,-463.30864532,0.00017646,2]
[373960708,1753163445035,-494.24396985,0.00017646,2]
[373960709,1753163445045,-460.0,0.00017646,2]
[373960710,1753163445054,-1001.37,0.00017647,2]
[373960711,1753163445063,-460.0,0.00017647,2]
[373960712,1753163445072,-586.61,0.00017647,2]
[373960713,1753163445081,-944.37,0.00017647,2]
[373960714,1753163445090,-475.16,0.00017647,2]
[373960715,1753163445100,-460.0,0.00017647,2]
[373960716,1753163445108,-460.0,0.00017647,2]
[373960717,1753163445118,-460.0,0.00017647,2]
[373960718,1753163445127,-460.0,0.00017647,2]
[373960719,1753163445137,-599.24700882,0.00017648,2]
[373960720,1753163445147,-460.0,0.00017648,2]
[373960721,1753163445157,-603.89227026,0.00017648,2]
[373960722,1753163445167,-601.08,0.00017648,2]
[373960723,1753163445176,-254.38,0.00017648,2]
[373960724,1753163445186,-460.0,0.00017648,2]
[373960725,1753163445198,-460.0,0.00017648,2]
[373960726,1753163445207,-460.0,0.00017648,2]
[373960727,1753163445217,-460.0,0.00017648,2]
[373960728,1753163445226,-460.0,0.00017648,2]
[373960729,1753163445235,-460.0,0.00017648,2]
[373960730,1753163445244,-460.0,0.00017648,2]
[373960731,1753163445254,-460.0,0.00017648,2]
[373960732,1753163445264,-460.0,0.00017648,2]
[373960733,1753163445278,-391.20589713,0.00017648,2]
[373960734,1753163445287,-460.0,0.00017648,2]
[373960735,1753163445296,-460.0,0.00017648,2]
[373960736,1753163445306,-590.82,0.00017648,2]
[373960737,1753163445316,-460.0,0.00017648,2]
[373960738,1753163445325,-460.0,0.00017648,2]
[373960739,1753163445334,-460.0,0.00017648,2]
[373960740,1753163445344,-593.42,0.00017648,2]
[373960741,1753163445353,-834.11,0.0001765,2]
[373960742,1753163445363,-460.0,0.0001765,2]
[373960743,1753163445372,-460.0,0.0001765,2]
[373960744,1753163445381,-574.84,0.0001765,2]
[373960745,1753163445391,-460.0,0.0001765,2]
[373960746,1753163445400,-540.77,0.0001765,2]
[373960747,1753163445410,-460.0,0.00017651,2]
[373960748,1753163445419,-460.0,0.00017651,2]
[373960749,1753163445429,-460.0,0.00017651,2]
[373960750,1753163445441,-460.0,0.00017651,2]
[373960751,1753163445450,-466.56276797,0.00017651,2]
[373960752,1753163445460,-460.0,0.00017651,2]
[373960753,1753163445470,-460.0,0.00017651,2]
[373960754,1753163445479,-460.0,0.00017651,2]
[373960755,1753163445489,-470.61095494,0.00017651,2]
[373960756,1753163445499,-463.97500908,0.00017651,2]
[373960757,1753163445509,-460.0,0.00017651,2]
[373960758,1753163445518,-460.0,0.00017651,2]
[373960759,1753163445528,-460.0,0.00017651,2]
[373960760,1753163445537,-460.0,0.00017651,2]
[373960761,1753163445547,-460.0,0.00017651,2]
[373960762,1753163445556,-460.0,0.00017651,2]
[373960763,1753163445565,-460.0,0.00017651,2]
[373960764,1753163445575,-502.49,0.00017651,2]
[373960765,1753163445586,-460.0,0.00017651,2]
[373960766,1753163445595,-460.0,0.00017651,2]
[373960767,1753163445605,-460.0,0.00017651,2]
[373960768,1753163445614,-460.0,0.00017651,2]
[373960769,1753163445624,-460.0,0.00017651,2]
[373960770,1753163445634,-460.0,0.00017651,2]
[373960771,1753163445644,-471.07513265,0.00017651,2]
[373960772,1753163445653,-460.0,0.00017651,2]
[373960773,1753163445662,-958.9,0.00017652,2]
[373960774,1753163445671,-460.0,0.00017652,2]
[373960775,1753163445680,-460.0,0.00017652,2]
[373960776,1753163445690,-689.9,0.00017652,2]
[373960777,1753163445700,-706.84,0.00017652,2]
[373960778,1753163445710,-460.0,0.00017652,2]
[373960779,1753163445720,-529.07274286,0.00017652,2]
[373960780,1753163445730,-1262.91,0.00017652,2]
[373960781,1753163445740,-701.74,0.00017652,2]
[373960782,1753163445749,-151.0,0.00017655,2]
[373960783,1753163445759,-151.0,0.00017655,2]
[373960784,1753163445768,-151.0,0.00017655,2]
[373960785,1753163445777,-151.0,0.00017655,2]
[373960786,1753163445787,-430.0,0.00017655,2]
[373960787,1753163445796,-500.0,0.00017655,2]
[373960788,1753163445805,-500.0,0.00017721,2]
[373960789,1753163445814,-151.0,0.00017758,2]
[373960790,1753163445824,-1569.63,0.00017758,2]
[373960791,1753163445833,-460.0,0.00017758,2]
[373960792,1753163445843,-661.66,0.00017758,2]
[373960793,1753163445854,-3889.01,0.00017758,2]
[373960794,1753163445863,-151.0,0.00017758,2]
[373960795,1753163445872,-151.0,0.00017758,2]
[373960796,1753163445882,-1217.47,0.00017758,2]
[373960797,1753163445891,-1302.39584331,0.00017833,2]
[373960798,1753163445901,-460.0,0.00017868,2]
[373960799,1753163445910,-500.0,0.00017878,2]
[373960800,1753163445919,-785.55593966,0.000179,2]
[373960801,1753163445929,-460.0,0.00017919,2]
[373960802,1753163445940,-555.73,0.00017919,2]
[373960803,1753163445950,-642.61,0.00017919,2]
[373960805,1753163445959,-460.0,0.0001792,2]
[373960806,1753163445968,-1001.37,0.00017921,2]
[373960807,1753163445978,-460.0,0.00017921,2]
[373960808,1753163445987,-944.37,0.00017921,2]
[373960809,1753163445996,-460.0,0.00017921,2]
[373960810,1753163446006,-151.0,0.00017921,2]
[373960811,1753163446015,-154.094237,0.00017921,2]
[373960812,1753163446024,-460.0,0.00017921,2]
[373960813,1753163446033,-460.0,0.00017921,2]
[373960814,1753163446043,-460.0,0.00017921,2]
[373960815,1753163446052,-253.91,0.00017922,2]
[373960816,1753163446062,-460.0,0.00017922,2]
[373960817,1753163446071,-460.0,0.00017922,2]
[373960818,1753163446080,-460.0,0.00017922,2]
[373960819,1753163446090,-460.0,0.00017922,2]
[373960820,1753163446099,-484.48,0.00017922,2]
[373960821,1753163446109,-460.0,0.00017922,2]
[373960822,1753163446118,-460.0,0.00017922,2]
[373960823,1753163446128,-460.0,0.00017922,2]
[373960824,1753163446137,-460.0,0.00017922,2]
[373960825,1753163446145,-203.45,0.00017922,2]
[373960826,1753163446154,-460.0,0.00017922,2]
[373960827,1753163446162,-472.43,0.00017922,2]
[373960828,1753163446170,-460.0,0.00017922,2]
[373960830,1753163446180,-834.11,0.00017924,2]
[373960832,1753163446191,-460.0,0.00017924,2]
[373960833,1753163446200,-460.0,0.00017924,2]
[373960835,1753163446210,-460.0,0.00017924,2]
[373960837,1753163446220,-540.77,0.00017924,2]
[373960839,1753163446230,-460.0,0.00017925,2]
[373960841,1753163446239,-460.0,0.00017925,2]
[373960843,1753163446248,-255.74,0.00017925,2]
[373960845,1753163446259,-460.0,0.00017925,2]
[373960847,1753163446272,-465.47,0.00017925,2]
[373960849,1753163446281,-460.0,0.00017925,2]
[373960851,1753163446290,-460.0,0.00017925,2]
[373960853,1753163446299,-492.41,0.00017925,2]
[373960855,1753163446309,-460.0,0.00017925,2]
[373960857,1753163446319,-460.0,0.00017925,2]
[373960859,1753163446328,-460.0,0.00017925,2]
[373960861,1753163446338,-151.0,0.00017925,2]
[373960862,1753163446348,-390.65392384,0.00017925,2]
[373960865,1753163446358,-958.9,0.00017926,2]
[373960866,1753163446367,-460.0,0.00017926,2]
[373960868,1753163446377,-460.0,0.00017926,2]
[373960870,1753163446386,-689.9,0.00017926,2]
[373960872,1753163446396,-706.84,0.00017926,2]
[373960874,1753163446405,-460.0,0.00017926,2]
[373960876,1753163446415,-1262.91,0.00017926,2]
[373960878,1753163446424,-701.74,0.00017926,2]
[373960880,1753163446434,-151.0,0.00017929,2]
[373960882,1753163446444,-430.0,0.00017929,2]
[373960884,1753163446453,-500.0,0.00017929,2]
[373960886,1753163446463,-500.0,0.00017968,2]
[373960888,1753163446473,-508.86688165,0.00017968,2]
[373960890,1753163446484,-500.0,0.00017968,2]
[373960892,1753163446493,-500.0,0.00017968,2]
[373960894,1753163446503,-200.0,0.00018,2]
[373960896,1753163446513,-1569.63,0.00018032,2]
[373960898,1753163446523,-460.0,0.00018032,2]
[373960900,1753163446533,-661.66,0.00018032,2]
[373960902,1753163446542,-800.0,0.00018032,2]
[373960904,1753163446551,-3889.01,0.00018032,2]
[373960906,1753163446561,-1217.47,0.00018032,2]
[373960908,1753163446570,-160.0,0.00018058,2]
[373960910,1753163446579,-785.55593938,0.00018176,2]
[373960912,1753163446589,-431.58,0.00018189,3]
[373960925,1753163446709,-151.0,0.0001819,2]
[373960927,1753163446719,-151.0,0.0001819,2]
[373960929,1753163446729,-151.0,0.0001819,2]
[373960931,1753163446738,-151.0,0.0001819,2]
[373960933,1753163446748,-151.0,0.0001819,2]
[373960934,1753163446757,-151.0,0.0001819,2]
[373960935,1753163446767,-151.0,0.0001819,2]
[373960936,1753163446779,-151.0,0.0001819,2]
[373960938,1753163446789,-642.61,0.00018193,2]
[373960940,1753163446798,-460.0,0.00018194,2]
[373960942,1753163446808,-1001.37,0.00018195,2]
[373960944,1753163446817,-460.0,0.00018195,2]
[373960946,1753163446827,-944.37,0.00018195,2]
[373960948,1753163446836,-460.0,0.00018195,2]
[373960950,1753163446846,-460.0,0.00018195,2]
[373960952,1753163446855,-460.0,0.00018195,2]
[373960954,1753163446864,-460.0,0.00018195,2]
[373960956,1753163446874,-460.0,0.00018196,2]
[373960958,1753163446883,-568.82,0.00018196,2]
[373960959,1753163446892,-460.0,0.00018196,2]
[373960961,1753163446902,-460.0,0.00018196,2]
[373960963,1753163446912,-380.35698452,0.00018196,2]
[373960965,1753163446921,-460.0,0.00018196,2]
[373960967,1753163446930,-460.0,0.00018196,2]
[373960969,1753163446940,-460.0,0.00018196,2]
[373960971,1753163446949,-460.0,0.00018196,2]
[373960973,1753163446958,-834.11,0.00018198,2]
[373960975,1753163446968,-324.13,0.00018198,2]
[373960977,1753163446977,-581.56,0.00018198,2]
[373960978,1753163446986,-460.0,0.00018198,2]
[373960980,1753163446995,-540.77,0.00018198,2]
[373960982,1753163447004,-460.0,0.00018199,2]
[373960984,1753163447014,-460.0,0.00018199,2]
[373960986,1753163447023,-254.08,0.00018199,2]
[373960988,1753163447032,-157.04,0.00018199,2]
[373960990,1753163447041,-460.0,0.00018199,2]
[373960992,1753163447050,-460.0,0.00018199,2]
[373960994,1753163447059,-173.44,0.00018199,2]
[373960996,1753163447068,-958.9,0.000182,2]
[373960998,1753163447077,-689.9,0.000182,2]
[373961000,1753163447087,-706.84,0.000182,2]
[373961002,1753163447096,-460.0,0.000182,2]
[373961004,1753163447105,-1262.91,0.000182,2]
[373961006,1753163447114,-701.74,0.000182,2]
[373961007,1753163447123,-151.0,0.00018202,2]
[373961009,1753163447132,-151.0,0.00018202,2]
[373961011,1753163447141,-151.0,0.00018202,2]
[373961013,1753163447151,-245.93190959,0.00018203,2]
[373961015,1753163447160,-430.0,0.00018203,2]
[373961017,1753163447169,-500.0,0.00018203,2]
[373961019,1753163447179,-420.0,0.00018278,2]
[373961021,1753163447188,-1569.63,0.00018306,2]
[373961023,1753163447197,-460.0,0.00018306,2]
[373961025,1753163447207,-661.66,0.00018306,2]
[373961027,1753163447216,-3889.01,0.00018306,2]
[373961029,1753163447225,-1217.47,0.00018306,2]
[373961031,1753163447234,-160.0,0.0001832,2]
[373961033,1753163447243,-231.06963584,0.0001832,2]
[373961035,1753163447252,-214.6393183,0.0001832,2]
[373961037,1753163447262,-160.0,0.0001832,2]
[373961038,1753163447277,-160.0,0.0001832,2]
[373961040,1753163447287,-215.80012421,0.0001832,2]
[373961042,1753163447297,-526.07605158,0.0001832,2]
[373961044,1753163447306,-476.60259688,0.0001832,2]
[373961046,1753163447317,-12619.94447631,0.0001832,2]
[373961048,1753163447326,-839.90542673,0.0001832,2]
[373961050,1753163447335,-150.0,0.00018359,2]
[373961052,1753163447346,-1680.0,0.00018368,2]
[373961054,1753163447355,-151.492355,0.00018369,2]
[373961056,1753163447366,-151.0,0.00018369,2]
[373961058,1753163447376,-151.0,0.00018369,2]
[373961060,1753163447385,-174.0,0.00018384,3]
[373961062,1753163447396,-785.55593938,0.00018452,2]
[373961064,1753163447405,-642.61,0.00018467,2]
[373961066,1753163447414,-460.0,0.00018468,2]
[373961068,1753163447423,-1001.37,0.00018469,2]
[373961070,1753163447433,-460.0,0.00018469,2]
[373961072,1753163447443,-944.37,0.00018469,2]
[373961074,1753163447452,-460.0,0.00018469,2]
[373961076,1753163447461,-460.0,0.00018469,2]
[373961077,1753163447470,-339.47830233,0.00018469,2]
[373961079,1753163447479,-460.0,0.00018469,2]
[373961081,1753163447489,-460.0,0.0001847,2]
[373961083,1753163447498,-460.0,0.0001847,2]
[373961085,1753163447507,-460.0,0.0001847,2]
[373961087,1753163447516,-460.0,0.0001847,2]
[373961089,1753163447525,-460.0,0.0001847,2]
[373961091,1753163447534,-460.0,0.0001847,2]
[373961092,1753163447544,-460.0,0.0001847,2]
[373961094,1753163447553,-500.0,0.00018471,2]
[373961096,1753163447563,-500.0,0.00018471,2]
[373961098,1753163447573,-500.0,0.00018471,2]
[373961100,1753163447582,-511.35850812,0.00018471,2]
[373961102,1753163447591,-834.11,0.00018472,2]
[373961104,1753163447601,-460.0,0.00018472,2]
[373961106,1753163447610,-540.77,0.00018472,2]
[373961108,1753163447620,-460.0,0.00018473,2]
[373961110,1753163447629,-236.68,0.00018473,2]
[373961112,1753163447638,-460.0,0.00018473,2]
[373961114,1753163447648,-460.0,0.00018473,2]
[373961116,1753163447657,-958.9,0.00018474,2]
[373961117,1753163447666,-689.9,0.00018474,2]
[373961119,1753163447676,-706.84,0.00018474,2]
[373961121,1753163447686,-460.0,0.00018474,2]
[373961123,1753163447698,-1262.91,0.00018474,2]
[373961125,1753163447707,-701.74,0.00018474,2]
[373961127,1753163447717,-430.0,0.00018477,2]
[373961129,1753163447726,-500.0,0.00018477,2]
[373961131,1753163447736,-1569.63,0.0001858,2]
[373961133,1753163447745,-460.0,0.0001858,2]
[373961135,1753163447754,-661.66,0.0001858,2]
[373961137,1753163447763,-3889.01,0.0001858,2]
[373961139,1753163447773,-1217.47,0.0001858,2]
[373961141,1753163447782,-260.0,0.00018606,2]
[373961143,1753163447791,-785.55593938,0.00018728,2]
[373961145,1753163447800,-642.61,0.00018741,2]
[373961146,1753163447809,-460.0,0.00018742,2]
[373961148,1753163447819,-1001.37,0.00018743,2]
[373961150,1753163447828,-460.0,0.00018743,2]
[373961152,1753163447838,-944.37,0.00018743,2]
[373961154,1753163447847,-460.0,0.00018743,2]
[373961156,1753163447857,-460.0,0.00018743,2]
[373961158,1753163447865,-460.0,0.00018743,2]
[373961160,1753163447875,-460.0,0.00018744,2]
[373961162,1753163447884,-460.0,0.00018744,2]
[373961164,1753163447893,-180.16222211,0.00018744,2]
[373961166,1753163447903,-460.0,0.00018744,2]
[373961168,1753163447913,-460.0,0.00018744,2]
[373961170,1753163447922,-460.0,0.00018744,2]
[373961172,1753163447931,-556.9298298,0.00018744,2]
[373961173,1753163447941,-834.11,0.00018746,2]
[373961175,1753163447950,-460.0,0.00018746,2]
[373961177,1753163447959,-540.77,0.00018746,2]
[373961179,1753163447969,-460.0,0.00018747,2]
[373961181,1753163447978,-460.0,0.00018747,2]
[373961183,1753163447987,-460.0,0.00018747,2]
[373961184,1753163447996,-958.9,0.00018748,2]
[373961185,1753163448005,-689.9,0.00018748,2]
[373961186,1753163448014,-706.84,0.00018748,2]
[373961187,1753163448024,-460.0,0.00018748,2]
[373961188,1753163448033,-1262.91,0.00018748,2]
[373961189,1753163448043,-298.640799,0.00018748,2]
[373961190,1753163448052,-701.74,0.00018748,2]
[373961191,1753163448062,-430.0,0.00018751,2]
[373961192,1753163448071,-500.0,0.00018751,2]
[373961193,1753163448081,-500.0,0.00018819,2]
[373961194,1753163448090,-1569.63,0.00018854,2]
[373961195,1753163448100,-460.0,0.00018854,2]
[373961196,1753163448110,-661.66,0.00018854,2]
[373961197,1753163448119,-151.0,0.00018854,2]
[373961198,1753163448128,-3889.01,0.00018854,2]
[373961199,1753163448137,-1217.47,0.00018854,2]
[373961200,1753163448147,-1302.39584331,0.00018937,2]
[373961201,1753163448156,-785.55593938,0.00019003,2]
[373961202,1753163448165,-642.61,0.00019015,2]
[373961203,1753163448174,-460.0,0.00019016,2]
[373961204,1753163448184,-6085.24371768,0.00019017,2]
[373961205,1753163448195,-1001.37,0.00019017,2]
[373961206,1753163448205,-460.0,0.00019017,2]
[373961207,1753163448214,-944.37,0.00019017,2]
[373961208,1753163448224,-460.0,0.00019017,2]
[373961209,1753163448234,-460.0,0.00019017,2]
[373961210,1753163448243,-460.0,0.00019017,2]
[373961211,1753163448252,-460.0,0.00019018,2]
[373961212,1753163448261,-460.0,0.00019018,2]
[373961213,1753163448273,-460.0,0.00019018,2]
[373961214,1753163448283,-460.0,0.00019018,2]
[373961215,1753163448292,-460.0,0.00019018,2]
[373961216,1753163448301,-154.089236,0.0001902,2]
[373961218,1753163448311,-834.11,0.0001902,2]
[373961220,1753163448321,-460.0,0.0001902,2]
[373961222,1753163448330,-151.0,0.0001902,2]
[373961224,1753163448340,-540.77,0.0001902,2]
[373961226,1753163448351,-460.0,0.00019021,2]
[373961228,1753163448360,-232.77349605,0.00019021,2]
[373961230,1753163448370,-460.0,0.00019021,2]
[373961232,1753163448379,-958.9,0.00019022,2]
[373961234,1753163448389,-689.9,0.00019022,2]
[373961236,1753163448398,-706.84,0.00019022,2]
[373961238,1753163448408,-460.0,0.00019022,2]
[373961240,1753163448418,-1262.91,0.00019022,2]
[373961242,1753163448427,-701.74,0.00019022,2]
[373961244,1753163448437,-430.0,0.00019025,2]
[373961246,1753163448449,-500.0,0.00019025,2]
[373961248,1753163448458,-192.5,0.00019026,3]
[373961250,1753163448468,-429.5320659,0.00019032,2]
[373961252,1753163448477,-648.0,0.00019098,2]
[373961254,1753163448488,-2157.0,0.00019098,2]
[373961256,1753163448497,-407.0,0.00019098,2]
[373961258,1753163448506,-419.15,0.00019098,2]
[373961260,1753163448515,-968.0,0.00019098,2]
[373961262,1753163448525,-1569.63,0.00019128,2]
[373961264,1753163448535,-460.0,0.00019128,2]
[373961266,1753163448544,-661.66,0.00019128,2]
[373961268,1753163448553,-3889.01,0.00019128,2]
[373961269,1753163448562,-1217.47,0.00019128,2]
[373961272,1753163448572,-360.0,0.00019154,2]
[373961273,1753163448582,-220.17848307,0.00019178,2]
[373961276,1753163448592,-344.037062,0.00019178,2]
[373961277,1753163448602,-785.55593938,0.00019279,2]
[373961279,1753163448611,-642.61,0.00019289,2]
[373961281,1753163448621,-1001.37,0.00019291,2]
[373961283,1753163448631,-460.0,0.00019291,2]
[373961285,1753163448640,-944.37,0.00019291,2]
[373961287,1753163448649,-460.0,0.00019291,2]
[373961289,1753163448659,-460.0,0.00019291,2]
[373961291,1753163448668,-460.0,0.00019291,2]
[373961293,1753163448679,-460.0,0.00019292,2]
[373961295,1753163448688,-460.0,0.00019292,2]
[373961297,1753163448702,-460.0,0.00019292,2]
[373961299,1753163448711,-381.07249376,0.00019292,2]